bitfinex/quotes_ETHUSD_20260207
["timestamp","ask_amount","ask_price","bid_price","bid_amount"]
[1770457703699,0.937214,2012.2,2011.5,0.001]
[1770457705601,2.17969353,2012.2,2011.5,0.001]
[1770457705768,0.71492468,2012.1,2011.5,0.001]
[1770457706902,0.937214,2012.0,2011.5,0.001]
[1770457707104,0.71492468,2012.1,2011.5,0.001]
[1770457707277,0.937214,2012.1,2011.5,0.001]
[1770457707807,2.1797424,2012.1,2011.5,0.001]
[1770457710812,0.937214,2012.0,2011.5,0.001]
[1770457712730,0.937214,2012.0,2011.7,0.001]
[1770457712912,2.17978146,2012.0,2011.7,0.001]
[1770457713633,1.24433553,2012.4,2011.7,0.001]
[1770457713796,2.18154953,2012.4,2011.7,0.001]
[1770457716430,0.95696178,2012.3,2011.7,0.001]
[1770457717626,0.95696178,2012.1,2011.7,0.001]
[1770457717805,1.24430475,2012.4,2011.7,0.001]
[1770457718516,2.20126653,2012.4,2011.7,0.001]
[1770457718715,0.95696178,2012.3,2011.7,0.001]
[1770457721245,1.24242123,2012.2,2011.7,0.001]
[1770457721539,0.95696178,2012.1,2011.7,0.001]
[1770457723610,0.95696178,2011.9,2011.5,0.001]
[1770457723822,0.95696178,2011.9,2010.9,6.3219415]
[1770457724019,1.01407768,2011.9,2010.9,5.07876516]
[1770457725824,0.95696178,2011.7,2010.9,6.32198652]
[1770457726025,0.95696178,2011.7,2010.9,6.95428517]
[1770457726342,0.95696178,2011.7,2010.9,5.07876516]
[1770457727534,0.95696178,2011.7,2010.9,6.32198089]
[1770457727735,0.95696178,2011.7,2010.9,5.07876516]
[1770457727941,0.95696178,2011.5,2010.9,5.07876516]
[1770457728640,1.24442724,2012.2,2011.2,0.96106583]
[1770457728823,0.002,2012.2,2011.2,0.96106583]
[1770457729921,0.002,2012.2,2011.5,1.24285359]
[1770457731730,0.95896178,2012.2,2011.4,1.24289292]
[1770457732558,2.20138663,2012.2,2011.1,1.24310079]
[1770457734019,0.95696178,2012.1,2010.9,6.32194888]
[1770457734219,0.95696178,2012.0,2010.9,6.32194888]
[1770457734532,0.95696178,2011.8,2010.9,5.07876516]
[1770457734734,0.95696178,2011.8,2010.9,6.32196092]
[1770457736085,0.95696178,2011.8,2010.9,6.32197842]
[1770457736255,0.95696178,2011.8,2010.9,7.45160853]
[1770457736741,0.95696178,2011.6,2010.9,7.45160853]
[1770457738148,0.95696178,2011.6,2010.9,7.45161732]
[1770457739158,2.19961453,2011.9,2010.9,7.45161732]
[1770457739356,2.19961453,2011.9,2011.1,0.001]
[1770457739528,0.71699276,2011.8,2011.1,0.001]
[1770457740163,1.24454953,2012.0,2011.1,0.001]
[1770457740326,0.002,2012.0,2011.1,0.96206583]
[1770457740728,0.002,2012.0,2011.2,2.20410481]
[1770457741456,0.002,2012.0,2011.3,0.96106583]
[1770457742845,0.002,2012.0,2011.4,1.24291538]
[1770457743046,0.002,2012.0,2011.5,0.71756427]
[1770457743845,0.002,2012.0,2011.6,0.96106583]
[1770457744156,0.002,2012.4,2011.6,0.96106583]
[1770457744880,0.002,2012.4,2011.8,0.96106583]
[1770457746165,0.002,2013.0,2011.9,0.9461492]
[1770457746990,0.002,2013.0,2011.4,4.97092011]
[1770457746991,1.09981141,2011.6,2010.9,6.20939527]
[1770457747272,0.97303978,2011.8,2010.9,5.07976516]
[1770457747438,0.97303978,2011.8,2010.9,1.24322442]
[1770457747640,0.97303978,2011.8,2010.9,1.8648463]
[1770457749264,2.21570967,2011.8,2010.9,1.8648463]
[1770457749575,2.21571839,2011.8,2010.9,1.8648463]
[1770457750469,0.90255119,2011.5,2010.6,0.001]
[1770457750780,0.90255119,2012.0,2010.9,1.24320578]
[1770457750950,0.95966709,2012.0,2010.9,1.24320578]
[1770457751270,0.90255119,2012.0,2010.9,3.0840023]
[1770457751476,2.14673312,2012.6,2011.1,0.90015046]
[1770457751769,0.90255119,2012.5,2011.2,1.84079652]
[1770457751958,0.90255119,2012.5,2011.2,0.90015046]
[1770457752475,0.002,2012.4,2011.2,0.90015046]
[1770457753952,0.90015046,2011.2,2011.0,0.001]
[1770457754267,0.90015046,2011.2,2010.8,0.001]
[1770457754268,0.002,2010.8,2010.6,0.001]
[1770457754468,0.95966709,2011.1,2009.3,4.9766538]
[1770457754651,0.95966709,2011.1,2010.2,1.24365268]
[1770457754855,0.95966709,2011.1,2010.2,1.86551552]
[1770457755175,0.90255119,2011.1,2010.2,0.62186135]
[1770457755373,0.90255119,2011.6,2010.6,1.24339471]
[1770457755550,0.90255119,2011.6,2010.7,3.81396884]
[1770457755945,2.50258731,2011.5,2010.7,5.05728819]
[1770457756145,0.90255119,2011.4,2009.6,0.90015046]
[1770457756347,0.90255119,2011.4,2010.5,1.24346609]
[1770457756549,0.25597032,2011.3,2010.5,1.24346609]
[1770457756748,0.25597032,2011.3,2009.9,5.87527839]
[1770457757047,0.25597032,2011.3,2010.5,1.24346868]
[1770457757244,0.25597032,2011.3,2010.6,1.2433796]
[1770457757775,0.25597032,2011.3,2010.7,1.24331439]
[1770457758149,0.35713072,2011.5,2010.7,0.62169524]
[1770457758349,0.35713072,2011.5,2010.3,0.90015046]
[1770457759651,2.50253838,2011.5,2010.1,1.24371921]
[1770457759857,0.90255119,2011.4,2010.1,1.24371921]
[1770457760058,0.90255119,2011.3,2010.1,1.24371921]
[1770457760272,0.90255119,2011.1,2010.3,1.24359548]
[1770457761783,0.95966709,2011.1,2010.2,1.86550307]
[1770457761981,0.95966709,2011.1,2010.0,1.24374635]
[1770457762279,0.90255119,2010.9,2009.9,1.24380869]
[1770457762483,1.2431626,2011.0,2009.9,0.62194165]
[1770457762484,0.90255119,2010.7,2009.9,0.62194165]
[1770457762780,0.90255119,2010.7,2009.8,4.97553464]
[1770457762969,0.90255119,2010.7,2010.0,1.24376806]
[1770457763286,0.90255119,2010.7,2009.8,1.24387531]
[1770457763681,0.90255119,2010.7,2010.0,1.24377477]
[1770457763852,2.14571379,2011.0,2010.0,1.24377477]
[1770457764186,0.90255119,2010.7,2010.0,1.11940235]
[1770457764390,0.90255119,2010.7,2009.8,1.24386803]
[1770457765180,0.90255119,2010.7,2009.5,4.8337347]
[1770457765181,0.0571159,2010.6,2010.3,0.001]
[1770457765487,0.90255119,2010.7,2009.9,1.24384049]
[1770457765685,0.90255119,2010.7,2009.8,1.24385987]
[1770457765894,0.90255119,2010.7,2009.8,1.86582412]
[1770457766461,0.90255119,2010.7,2009.9,1.24384115]
[1770457766682,0.002,2010.9,2009.9,2.14399161]
[1770457766887,0.002,2010.9,2010.0,0.90015046]
[1770457768491,0.002,2010.9,2010.1,1.24371921]
[1770457768693,0.002,2010.9,2010.2,0.71187465]
[1770457769689,0.002,2010.9,2010.2,1.61202511]
[1770457770470,0.002,2010.9,2010.3,2.14374594]
[1770457770666,0.002,2010.9,2010.4,0.90015046]
[1770457770972,0.26985849,2011.2,2010.4,0.90015046]
[1770457771278,0.95966709,2011.8,2010.4,0.90015046]
[1770457771594,1.15763041,2011.7,2010.4,0.90015046]
[1770457772469,0.25507922,2011.7,2010.6,0.90015046]
[1770457773673,1.59114215,2011.9,2010.6,0.90015046]
[1770457773873,0.34851823,2011.9,2010.6,0.90015046]
[1770457774488,0.90255119,2011.8,2010.7,1.24334808]
[1770457775569,0.90255119,2011.5,2010.5,1.24346445]
[1770457775774,0.90255119,2011.5,2010.4,1.24348725]
[1770457775974,0.9621304,2011.2,2010.3,1.24356377]
[1770457776188,0.9621304,2011.2,2010.5,1.24346016]
[1770457776370,0.9621304,2011.2,2010.4,1.24349056]
[1770457776572,1.24310079,2011.1,2010.4,1.24349056]
[1770457776768,0.9621304,2011.4,2010.4,1.24349056]
[1770457777899,0.9621304,2011.4,2010.5,0.001]
[1770457778074,0.9621304,2011.4,2010.5,0.69217611]
[1770457778268,0.002,2011.0,2010.5,0.69217611]
[1770457778776,0.002,2011.0,2010.6,1.24340992]
[1770457782501,0.002,2011.0,2010.5,1.93560162]
[1770457783280,0.002,2011.0,2010.5,1.24442551]
[1770457783481,0.002,2011.0,2010.5,1.24446151]
[1770457785304,0.002,2011.0,2010.5,0.001]
[1770457786697,0.9621304,2010.8,2010.3,0.001]
[1770457787272,2.20547848,2010.7,2010.3,0.001]
[1770457787581,0.9621304,2010.6,2010.3,0.001]
[1770457787981,0.9621304,2010.9,2010.3,0.001]
[1770457789898,0.9621304,2010.8,2010.3,0.001]
[1770457790814,0.9621304,2010.8,2010.5,0.001]
[1770457791984,2.20542069,2010.8,2010.5,0.001]
[1770457792183,0.7178337,2010.7,2010.5,0.001]
[1770457792611,2.20542218,2010.8,2010.5,0.001]
[1770457793110,0.9621304,2010.8,2010.5,0.001]
[1770457793510,0.9621304,2010.7,2010.5,0.001]
[1770457794515,2.2055099,2010.7,2010.5,0.001]
[1770457794812,0.9621304,2010.6,2010.5,0.001]
[1770457795400,0.9621304,2010.6,2010.3,0.001]
[1770457795620,0.9621304,2010.6,2009.6,1.24402866]
[1770457795826,0.9621304,2010.6,2009.8,1.24390486]
[1770457795827,2.92917136,2010.6,2009.8,1.24390486]
[1770457796023,0.9621304,2010.5,2009.7,2.34932619]
[1770457797207,0.9621304,2010.5,2009.7,2.34937225]
[1770457798533,2.20566402,2010.4,2009.7,1.10540573]
[1770457798694,0.9621304,2010.3,2009.7,1.10540573]
[1770457799017,0.9621304,2010.3,2009.6,1.24402485]
[1770457799795,0.9621304,2010.3,2009.6,1.24399911]
[1770457800197,0.9621304,2010.3,2009.7,1.2439638]
[1770457800499,0.9621304,2010.3,2009.4,1.24515248]
[1770457800822,0.9621304,2010.2,2009.5,0.71859097]
[1770457800997,0.2906862,2011.3,2009.6,0.9639363]
[1770457800998,2.20535482,2010.9,2009.6,0.9639363]
[1770457801317,0.9621304,2010.9,2009.6,0.9639363]
[1770457801511,0.9621304,2010.9,2009.4,0.001]
[1770457801512,0.9621304,2010.6,2009.4,0.001]
[1770457801719,0.9621304,2010.3,2009.4,0.001]
[1770457802293,0.0571159,2010.1,2009.9,0.001]
[1770457802526,0.9621304,2010.2,2009.9,0.001]
[1770457802699,2.20567257,2010.4,2009.9,0.001]
[1770457802900,2.20567683,2010.4,2009.9,0.001]
[1770457803322,0.9621304,2010.3,2009.9,0.001]
[1770457804520,2.20573843,2010.3,2009.9,0.001]
[1770457804727,0.9621304,2010.3,2009.9,0.001]
[1770457805221,2.20573247,2010.3,2009.9,0.001]
[1770457806502,0.002,2010.6,2009.9,0.9557247]
[1770457808524,0.002,2010.6,2010.1,0.9547247]
[1770457808897,0.002,2010.6,2010.0,1.24378109]
[1770457809097,0.002,2010.6,2010.0,2.19850579]
[1770457809311,0.002,2010.6,2010.0,1.24378109]
[1770457809512,0.002,2010.6,2010.1,0.62199055]
[1770457809723,0.002,2010.6,2010.1,1.6206265]
[1770457810526,0.002,2010.6,2010.2,1.24365734]
[1770457813117,0.002,2010.6,2010.1,1.24368159]
[1770457813316,0.002,2010.6,2010.1,2.24231754]
[1770457813719,0.002,2010.6,2010.2,0.72173377]
[1770457813932,0.002,2010.6,2010.2,1.72036972]
[1770457814304,0.002,2010.6,2010.3,0.99863595]
[1770457815012,0.002,2010.6,2010.2,0.72173377]
[1770457815215,0.002,2010.6,2010.3,1.24359548]
[1770457815533,0.002,2010.6,2010.4,0.69397112]
[1770457817525,0.002,2010.6,2010.5,1.24347177]
[1770457817908,0.002,2011.0,2010.5,1.24347177]
[1770457818247,0.002,2011.0,2010.6,0.99863595]
[1770457819550,0.002,2011.2,2010.8,0.99863595]
[1770457819838,0.002,2011.2,2010.7,1.24334808]
[1770457820033,0.002,2011.2,2010.8,0.72153764]
[1770457822236,0.002,2011.2,2010.9,1.24322442]
[1770457824335,0.002,2011.2,2010.8,0.72153764]
[1770457824520,0.002,2011.2,2010.8,1.24327874]
[1770457824908,0.9761814,2011.2,2010.1,0.001]
[1770457825109,0.9741814,2011.0,2010.1,0.001]
[1770457825350,0.002,2011.2,2010.5,1.24347069]
[1770457825552,1.0332973,2011.2,2010.4,1.24349653]
[1770457826327,2.27635667,2011.2,2010.2,1.24365734]
[1770457826636,2.27634352,2011.2,2010.2,1.24365734]
[1770457826945,0.72482615,2011.1,2010.3,0.72180999]
[1770457827444,1.69900755,2011.1,2010.3,0.72180999]
[1770457828418,2.94211201,2011.1,2010.4,1.24353362]
[1770457828620,0.9741814,2011.0,2010.4,1.24353362]
[1770457828926,1.24505237,2011.2,2010.4,1.24353362]
[1770457828927,0.9761814,2011.2,2010.4,1.24353362]
[1770457829142,0.9761814,2011.2,2010.5,0.69397039]
[1770457829351,0.002,2011.0,2010.5,0.69397039]
[1770457829538,0.002,2011.0,2010.6,0.99863595]
[1770457830044,0.002,2011.0,2010.5,1.69260634]
[1770457830431,0.002,2011.0,2010.6,1.24340992]
[1770457830636,0.002,2011.0,2010.7,0.7909656]
[1770457833228,0.002,2011.0,2010.7,2.03428224]
[1770457833734,0.002,2011.0,2010.6,1.24336186]
[1770457834047,0.002,2011.0,2010.7,1.24334315]
[1770457835322,0.002,2011.0,2010.6,4.97362042]
[1770457835523,0.002,2011.0,2010.6,5.97225637]
[1770457835760,0.002,2011.0,2010.7,0.99863595]
[1770457835966,0.002,2011.0,2010.8,0.59722564]
[1770457837652,0.9741814,2011.7,2010.9,1.24322442]
[1770457838753,1.56533176,2011.9,2010.9,1.24322442]
[1770457838958,1.56533176,2011.9,2010.9,2.15698719]
[1770457839123,2.53999867,2011.9,2010.9,2.15698719]
[1770457839328,0.97466691,2011.8,2011.0,0.77272911]
[1770457839826,0.97466691,2011.8,2011.1,1.24310079]
[1770457841556,0.002,2011.6,2011.1,1.24310079]
[1770457843941,0.002,2011.6,2011.2,0.91376277]
[1770457844136,0.002,2012.0,2011.2,0.91376277]
[1770457846428,0.002,2012.0,2011.3,2.15673994]
[1770457846657,0.002,2012.0,2011.4,1.62662764]
[1770457846856,0.002,2012.0,2011.5,0.91376277]
[1770457848289,0.002,2012.0,2011.4,0.71286487]
[1770457848644,0.002,2012.0,2011.4,1.95572938]
[1770457849541,0.97666691,2012.0,2011.4,1.95572938]
[1770457849949,0.97466691,2011.8,2011.1,1.24307038]
[1770457850365,0.97466691,2011.8,2011.1,1.24305746]
[1770457850750,0.97466691,2011.8,2011.1,1.24310079]
[1770457851149,2.21925115,2012.0,2011.1,1.24310079]
[1770457852362,2.21925115,2012.0,2011.1,2.15686356]
[1770457852571,0.71912294,2011.9,2011.1,3.44442756]
[1770457853266,2.21921291,2012.0,2011.1,3.44442756]
[1770457854366,0.97666691,2012.0,2011.1,3.44442756]
[1770457854543,0.002,2012.0,2011.2,0.91376277]
[1770457854743,0.002,2011.8,2011.2,0.91376277]
[1770457855382,0.002,2011.8,2011.1,1.287564]
[1770457855584,0.002,2011.8,2011.1,2.53065974]
[1770457855742,0.002,2011.8,2011.2,1.24303674]
[1770457856866,0.002,2011.8,2011.2,2.15679951]
[1770457860847,0.002,2011.8,2011.3,0.91376277]
[1770457861448,0.002,2012.0,2011.4,0.91376277]
[1770457861645,1.24417491,2012.6,2011.5,0.91376277]
[1770457861840,0.97666691,2012.6,2011.4,1.24291538]
[1770457862047,0.97666691,2012.4,2011.5,0.62145769]
[1770457862264,1.03378281,2012.4,2011.5,0.62145769]
[1770457862689,0.97666691,2012.4,2011.3,2.15671443]
[1770457863668,2.21702639,2012.3,2011.3,2.15671443]
[1770457863876,0.002,2012.4,2011.4,0.91376277]
[1770457864075,1.24430292,2012.4,2011.4,0.91376277]
[1770457864272,1.24430683,2012.4,2011.4,0.91376277]
[1770457864899,0.002,2012.4,2011.4,0.91376277]
[1770457865391,1.2443019,2012.4,2011.4,0.91376277]
[1770457865574,1.2443019,2012.4,2011.5,1.24285359]
[1770457865775,1.2443019,2012.4,2011.6,0.71280307]
[1770457865976,2.22304834,2012.4,2011.6,0.71280307]
[1770457866900,1.03786234,2012.2,2011.3,1.24395119]
[1770457867071,0.97874644,2012.0,2011.3,0.001]
[1770457867470,0.0571159,2011.9,2011.3,0.001]
[1770457867981,1.24266825,2011.8,2011.3,0.001]
[1770457868180,1.29977082,2011.9,2011.3,0.001]
[1770457868476,2.02465103,2011.9,2011.3,0.001]
[1770457869472,1.96753513,2011.9,2011.3,0.001]
[1770457871110,2.94390172,2011.9,2011.3,0.001]
[1770457873903,0.72488021,2011.9,2011.3,0.001]
[1770457874068,1.24254879,2012.0,2011.3,0.001]
[1770457874270,1.24254879,2012.0,2011.3,1.24397717]
[1770457875504,0.91925069,2011.9,2011.3,0.001]
[1770457875682,0.97636659,2011.9,2011.3,0.001]
[1770457876395,2.16191894,2011.8,2011.3,0.001]
[1770457876582,0.71894962,2011.7,2011.3,0.001]
[1770457879202,1.96169914,2011.7,2011.5,0.001]
[1770457879397,1.96169914,2011.7,2011.3,0.001]
[1770457879597,0.71894962,2011.7,2011.3,0.001]
[1770457879797,1.96170064,2011.7,2011.3,0.001]
[1770457880499,0.84228481,2011.6,2011.3,0.001]
[1770457880897,1.7615355,2011.6,2011.3,0.001]
[1770457881103,1.7615355,2011.6,2011.0,0.001]
[1770457881104,1.24285359,2011.5,2011.0,0.001]
[1770457881419,2.16210428,2011.5,2011.0,0.001]
[1770457886489,0.91925069,2011.4,2011.0,0.001]
[1770457886801,0.0571159,2011.3,2011.0,0.001]
[1770457887395,1.24303898,2011.2,2011.0,0.001]
[1770457887594,1.9621812,2011.2,2011.0,0.001]
[1770457888906,2.0192971,2011.2,2011.0,0.001]
[1770457889910,2.93854779,2011.2,2010.8,0.001]
[1770457890315,0.91925069,2011.1,2010.8,0.001]
[1770457891287,0.0571159,2010.9,2010.4,0.001]
[1770457891489,1.24328625,2010.8,2010.4,0.001]
[1770457891900,1.24326802,2010.9,2010.4,0.001]
[1770457892690,1.30038392,2010.9,2010.4,0.001]
[1770457893746,1.96219245,2011.2,2010.4,0.93902846]
[1770457894303,2.01930835,2011.2,2010.4,0.93902846]
[1770457894998,0.69933721,2011.1,2010.4,0.93902846]
[1770457895197,0.0571159,2010.9,2010.4,0.001]
[1770457895716,1.24328625,2010.8,2010.4,0.001]
[1770457897321,2.25523009,2010.9,2010.4,0.001]
[1770457898521,0.95484136,2010.8,2010.4,0.001]
[1770457899223,1.30038873,2010.9,2010.4,0.001]
[1770457899423,0.72281278,2010.8,2010.4,0.001]
[1770457900842,1.96615749,2010.8,2010.4,0.001]
[1770457903534,0.0591159,2010.6,2010.4,0.001]
[1770457903746,0.002,2010.6,2010.4,0.001]
[1770457907828,0.002,2010.6,2010.4,0.96572561]
[1770457908241,0.002,2010.6,2010.4,0.001]
[1770457913237,0.002,2010.6,2010.2,0.001]
[1770457913743,1.24347177,2010.5,2010.2,0.001]
[1770457916229,1.24347177,2010.5,2010.1,0.001]
[1770457916748,1.01195726,2010.4,2009.7,0.001]
[1770457916927,0.0571159,2010.4,2009.7,0.96572561]
[1770457917127,0.81005909,2010.4,2009.7,0.96572561]
[1770457917360,0.81205909,2010.4,2009.7,0.96572561]
[1770457917545,0.81205909,2010.4,2010.2,0.001]
[1770457917739,0.81205909,2010.4,2009.7,0.96572561]
[1770457917946,1.24554057,2010.4,2009.8,0.96472561]
[1770457918332,0.002,2010.4,2009.8,0.96472561]
[1770457919035,1.24558158,2010.4,2009.8,0.96472561]
[1770457919244,1.30269748,2010.4,2009.8,0.96472561]
[1770457919746,1.30269748,2010.4,2009.7,0.001]
[1770457919747,2.25753884,2010.4,2009.7,0.001]
[1770457919923,0.72315013,2010.3,2009.7,0.001]
[1770457920321,0.0571159,2010.1,2009.7,0.001]
[1770457920648,1.67799149,2010.3,2009.7,0.001]
[1770457920954,0.0571159,2010.1,2009.7,0.001]
[1770457921253,0.0571159,2010.1,2009.5,0.001]
[1770457921433,0.69811074,2010.1,2009.5,0.96572561]
[1770457921745,0.72315013,2010.3,2009.5,0.001]
[1770457921746,0.95484136,2010.2,2009.5,0.001]
[1770457921946,1.30083511,2010.1,2009.5,0.001]
[1770457922155,1.24371921,2010.1,2009.5,0.96572561]
[1770457922831,1.24369871,2010.2,2009.5,0.96572561]
[1770457923023,1.96678165,2010.3,2009.5,0.96572561]
[1770457923230,0.69431636,2010.2,2009.5,0.96572561]
[1770457924352,1.24371921,2010.1,2009.5,0.96572561]
[1770457925234,1.24371921,2010.1,2009.6,0.96472561]
[1770457927158,1.24371921,2010.1,2009.5,0.001]
[1770457927736,2.16061719,2010.1,2009.5,0.001]
[1770457928034,0.78295815,2010.0,2009.5,0.001]
[1770457928430,1.24384297,2009.9,2009.5,0.001]
[1770457929451,1.24384297,2009.9,2009.8,0.001]
[1770457929645,1.24584297,2009.9,2009.5,0.001]
[1770457929844,1.30295887,2009.9,2009.5,0.001]
[1770457930155,0.80021409,2009.8,2009.5,0.001]
[1770457930535,1.24396676,2009.7,2009.3,0.001]
[1770457930931,0.0571159,2009.6,2009.3,0.001]
[1770457931273,0.0571159,2009.6,2008.7,0.92466664]
[1770457931652,1.24396676,2009.7,2008.7,0.92466664]
[1770457931853,2.04416654,2009.8,2008.7,0.92466664]
[1770457932861,2.04416654,2009.8,2008.9,0.92366664]
[1770457935068,2.04416654,2009.8,2009.0,2.16806683]
[1770457935235,0.0571159,2009.6,2008.7,2.16921661]
[1770457935443,0.30423746,2009.6,2009.0,0.92366664]
[1770457935747,2.04416654,2009.8,2009.0,0.92366664]
[1770457936063,2.98525868,2009.8,2009.0,0.92366664]
[1770457936429,3.04237458,2009.8,2009.0,0.92366664]
[1770457936857,2.04416654,2009.8,2009.0,0.92366664]
[1770457937165,2.04416654,2009.8,2009.2,0.92366664]
[1770457937342,2.04416654,2009.8,2009.3,0.92366664]
[1770457938976,2.04416654,2009.8,2009.1,0.92366664]
[1770457939177,2.98525868,2009.8,2009.1,0.92366664]
[1770457939854,2.04416654,2009.8,2009.1,0.92366664]
[1770457940061,0.002,2009.9,2009.1,0.92366664]
[1770457941153,0.002,2009.9,2009.3,0.92366664]
[1770457941975,0.002,2009.9,2009.5,0.001]
[1770457943359,0.002,2009.9,2009.5,0.92466664]
[1770457944942,0.002,2010.1,2009.6,0.92366664]
[1770457945141,0.002,2010.1,2009.8,0.92366664]
[1770457946086,0.0571159,2010.0,2009.5,0.92466664]
[1770457946299,0.002,2010.1,2009.6,0.92366664]
[1770457946449,0.002,2010.1,2009.7,0.92366664]
[1770457946644,0.002,2010.4,2009.8,0.92366664]
[1770457947077,0.002,2010.4,2009.9,1.24384297]
[1770457947373,0.002,2010.4,2010.1,0.92366664]
[1770457948385,0.002,2010.4,2009.7,0.92366664]
[1770457948585,0.002,2010.4,2009.8,2.16755266]
[1770457948826,0.002,2010.4,2009.9,0.92366664]
[1770457949646,0.002,2010.4,2009.9,2.16750629]
[1770457949850,0.002,2010.4,2009.9,1.24383965]
[1770457950079,0.002,2010.4,2009.8,2.16752571]
[1770457950666,0.002,2010.4,2009.9,2.16750735]
[1770457950978,0.002,2010.4,2009.9,0.92366664]
[1770457951173,0.002,2010.4,2009.8,1.2438655]
[1770457952384,0.002,2010.4,2009.8,1.95821928]
[1770457952682,0.002,2010.4,2009.8,0.71435378]
[1770457952863,0.002,2010.4,2009.7,2.16759039]
[1770457953257,0.002,2010.4,2009.7,0.92366664]
[1770457953463,0.0571159,2010.3,2009.7,0.92366664]
[1770457954568,1.24565734,2010.2,2009.7,0.92366664]
[1770457954764,0.002,2010.2,2009.8,0.92366664]
[1770457954951,0.002,2010.2,2009.8,1.63803261]
[1770457955365,0.002,2010.2,2009.8,0.71436597]
[1770457955573,0.002,2010.2,2009.7,1.24396594]
[1770457956081,0.002,2010.2,2009.6,2.16765038]
[1770457956254,0.002,2010.2,2009.6,1.24398374]
[1770457956458,0.002,2010.2,2009.5,0.001]
[1770457956691,1.24371921,2010.1,2009.5,0.001]
[1770457957367,0.0571159,2010.0,2009.5,0.001]
[1770457957769,1.24371921,2010.1,2009.5,0.001]
[1770457958082,1.86785453,2010.2,2009.5,0.97561293]
[1770457958268,1.86784484,2010.2,2009.5,0.97561293]
[1770457958469,0.68422275,2010.1,2009.5,0.97561293]
[1770457958681,1.24553362,2010.4,2009.6,1.24402866]
[1770457959085,0.002,2010.4,2009.7,0.97461293]
[1770457961189,0.002,2010.4,2009.7,2.21857001]
[1770457961381,0.0571159,2010.2,2009.5,2.21969164]
[1770457961583,0.0571159,2010.2,2009.6,0.71962725]
[1770457961984,0.0571159,2010.2,2009.5,0.001]
[1770457962694,0.0571159,2010.2,2009.5,1.24506437]
[1770457962865,0.95525552,2010.4,2009.5,0.001]
[1770457963062,0.0571159,2010.2,2009.5,0.001]
[1770457963268,1.24371921,2010.1,2009.5,0.001]
[1770457963465,0.6275712,2010.0,2009.5,0.001]
[1770457964287,1.24371921,2010.1,2009.5,0.001]
[1770457965189,2.19697473,2010.1,2009.5,0.001]
[1770457965371,1.24390486,2009.8,2009.5,0.001]
[1770457966296,0.0571159,2009.3,2008.7,0.001]
[1770457966485,0.05115347,2009.3,2009.0,0.001]
[1770457968297,0.05115347,2009.3,2008.7,0.001]
[1770457968298,1.29538551,2009.3,2008.7,0.001]
[1770457968483,0.62721695,2009.2,2008.5,1.24470099]
[1770457968690,0.0571159,2008.9,2007.9,0.97461293]
[1770457968875,0.0571159,2008.9,2007.8,1.24510991]
[1770457968876,0.0571159,2008.6,2007.5,2.21993544]
[1770457969076,0.0571159,2008.6,2007.6,0.97461293]
[1770457969276,0.0571159,2008.7,2008.0,0.97461293]
[1770457970182,4.76408144,2009.0,2008.1,0.97461293]
[1770457971278,0.0571159,2008.9,2008.1,0.97461293]
[1770457971487,4.23164144,2008.9,2008.1,0.97461293]
[1770457971693,4.23164144,2008.9,2008.3,0.97461293]
[1770457971910,3.23163806,2008.9,2008.4,0.97461293]
[1770457972096,0.0571159,2009.7,2008.5,0.97461293]
[1770457972293,2.41869196,2009.6,2008.5,0.97461293]
[1770457972604,0.0571159,2009.1,2008.1,2.21956767]
[1770457972903,1.01037142,2008.8,2007.7,0.97461293]
[1770457973101,0.0571159,2008.5,2007.7,2.21978397]
[1770457973280,2.38621696,2008.4,2007.9,1.24507686]
[1770457973598,2.38621696,2008.4,2007.7,2.21979701]
[1770457973777,2.38621696,2008.4,2007.7,2.21981351]
[1770457973978,2.38621696,2008.4,2007.8,0.72008122]
[1770457976086,2.38621696,2008.4,2007.7,0.97461293]
[1770457976288,0.95325552,2008.0,2006.9,4.98260063]
[1770457976507,1.01037142,2008.3,2007.4,1.24536135]
[1770457976713,0.33965884,2008.2,2007.4,1.24536135]
[1770457976883,0.37330786,2008.1,2007.3,1.24541285]
[1770457977200,0.37330786,2008.1,2007.2,4.98203873]
[1770457977201,0.0571159,2008.0,2007.2,1.00753291]
[1770457977394,0.37471084,2007.9,2007.2,1.00753291]
[1770457977595,0.0571159,2007.7,2007.2,1.00753291]
[1770457977802,0.37471084,2007.9,2007.2,2.70569871]
[1770457977998,0.37471084,2007.9,2007.4,1.24534766]
[1770457978302,0.37471084,2007.9,2007.3,1.24545409]
[1770457978513,0.37471084,2007.9,2007.4,1.00753291]
[1770457978879,0.37471084,2007.9,2007.5,1.00753291]
[1770457979505,0.37471084,2007.9,2007.5,0.59460602]
[1770457979687,0.37471084,2007.9,2007.5,0.64389181]
[1770457980084,0.37471084,2007.9,2007.5,0.36242451]
[1770457980310,0.37471084,2007.9,2007.8,0.001]
[1770457980787,0.37471084,2007.9,2007.8,0.36342451]
[1770457981112,0.0571159,2008.5,2007.8,0.001]
[1770457981408,0.002,2008.9,2008.0,0.97461293]
[1770457981797,0.002,2008.9,2008.2,0.97461293]
[1770457982307,0.002,2008.9,2008.4,1.24477195]
[1770457982502,0.002,2008.9,2008.5,0.65862843]
[1770457982688,0.002,2008.9,2008.5,1.02105294]
[1770457983209,1.572,2010.0,2008.6,0.97461293]
[1770457983436,0.0571159,2009.9,2008.7,0.97461293]
[1770457983596,0.0571159,2009.9,2008.8,1.33703744]
[1770457983904,0.0591159,2010.0,2008.8,0.97461293]
[1770457984109,0.0591159,2010.0,2008.9,0.36242451]
[1770457984309,0.0591159,2010.0,2009.0,1.24440019]
[1770457984511,0.0591159,2010.0,2009.1,0.65844255]
[1770457984905,0.002,2010.0,2009.1,1.63305548]
[1770457985106,0.002,2010.0,2009.2,0.36242451]
[1770457986316,0.002,2010.0,2009.3,1.2442144]
[1770457986511,0.002,2010.0,2009.3,2.28385594]
[1770457986814,0.002,2010.0,2009.4,1.12473832]
[1770457987193,0.002,2010.0,2009.4,0.36242451]
[1770457988306,0.002,2010.0,2009.4,1.60654785]
[1770457988813,0.002,2010.0,2009.4,1.60657213]
[1770457989013,0.002,2010.0,2009.4,1.24414762]
[1770457989396,0.002,2010.0,2009.4,1.23841767]
[1770457990516,0.002,2010.0,2009.5,0.36242451]